[Event "IIFL Wealth 4th Mumbai Open"]
[Site "Mumbai"]
[Date "2019.01.02"]
[Round "4"]
[White "Sawant, Akshay"]
[Black "Aditya, Ramanathan"]
[Result "0-1"]
[ECO "C22"]
[WhiteElo "1716"]
[BlackElo "1493"]
[Annotator "NA"]
[PlyCount "46"]
[EventDate "2018.12.30"]
[EventType "swiss"]
[EventCountry "IND"]
[SourceTitle "playchess.com"]
[Source "ChessBase"]
[SourceQuality "1"]
[TimeControl "40/5400+30:1800+30"]

1. e4 {[%emt 0:00:00]} e5 {[%emt 0:00:00]} 2. d4 {[%emt 0:00:00]} exd4 {[%emt 0:00:00]} 3. Qxd4 {[%emt 0:00:00]} Nc6 {[%emt 0:00:00]} 4. Qe3 {[%emt 0:00:00]} Nf6 {[%emt 0:00:00]} 5. Nc3 {[%emt 0:00:00]} Bb4 {[%emt 0:00:13]} 6. Bd2 {[%emt 0:00:00]} O-O {[%emt 0:00:11]} 7. O-O-O {[%emt 0:00:04]} Re8 {[%emt 0:00:05]} 8. Qg3 {[%emt 0:01:58]} Rxe4 {[%emt 0:00:10]} 9. f4 {[%emt 0:10:34]} d5 {[%emt 0:11:00]} 10. Bd3 {[%emt 0:05:39]} Re8 {[%emt 0:03:54]} 11. a3 {[%emt 0:02:44]} Ba5 {[%emt 0:03:00]} 12. f5 {[%emt 0:23:13]} Ne5 {[%emt 0:06:07]} 13. Bg5 {[%emt 0:11:51]} Bxc3 {[%emt 0:02:28]} 14. bxc3 {[%emt 0:00:45]} Qd6 {[%emt 0:01:11]} 15. Bxf6 {[%emt 0:04:34]} Qxf6 {[%emt 0:00:38]} 16. Nh3 {[%emt 0:05:24]} Qd6 {[%emt 0:03:01]} 17. f6 {[%emt 0:15:37]} Qxf6 {[%emt 0:02:09]} 18. Rhf1 {[%emt 0:03:30]} Qd6 {[%emt 0:03:40]} 19. Ng5 {[%emt 0:02:57]} h6 {[%emt 0:04:32]} 20. Bh7+ {[%emt 0:02:40]} Kh8 {[%emt 0:03:32]} 21. Rxf7 {[%emt 0:06:50]} Qxa3+ {[%emt 0:01:10]} 22. Kb1 {[%emt 0:00:08]} Nc4 {[%emt 0:01:42]} 23. Qe3 {[%emt 0:02:08]} Qb2# {[%emt 0:00:08]} 0-1

[Event "IIFL Wealth 4th Mumbai Open"]
[Site "Mumbai"]
[Date "2019.01.02"]
[Round "4"]
[White "Deepak, Rai"]
[Black "Amrit, Raunak"]
[Result "1-0"]
[ECO "D00"]
[WhiteElo "1710"]
[BlackElo "1410"]
[Annotator "NA"]
[PlyCount "88"]
[EventDate "2018.12.30"]
[EventType "swiss"]
[EventCountry "IND"]
[SourceTitle "playchess.com"]
[Source "ChessBase"]
[SourceQuality "1"]
[TimeControl "40/5400+30:1800+30"]

1. d4 d5 2. Bf4 Bf5 3. e3 Nc6 4. Bd3 Bg6 5. Nf3 Nf6 6. Bxg6 hxg6 7. Qd3 e6 8. Qb5 Qc8 9. Nbd2 a6 10. Qa4 Qd7 11. c3 Nh5 12. b4 Nxf4 13. exf4 Bd6 14. g3 O-O-O 15. Qc2 Na7 16. a4 Qc6 17. Ne5 Bxe5 18. fxe5 f6 19. Nf3 g5 20. exf6 gxf6 21. O-O Qe8 22. Qe2 Qc6 23. Qc2 Qe8 24. Qe2 c6 25. Rfe1 Kd7 26. Nd2 Nc8 27. Nf3 Na7 28. Nd2 Nc8 29. Nb3 Kc7 30. Nc5 Kb8 31. b5 cxb5 32. axb5 Qxb5 33. Qxb5 axb5 34. Rxe6 Rd6 35. Rxd6 Nxd6 36. Nd7+ Kc7 37. Nxf6 Rf8 38. Nxd5+ Kd7 39. Re1 Rf5 40. Ra1 Rf8 41. Re1 Rf5 42. Ne3 Rf8 43. Ng4 Rf3 44. Ne5+ Ke7 1-0

[Event "IIFL Wealth 4th Mumbai Open"]
[Site "Mumbai"]
[Date "2019.01.02"]
[Round "4"]
[White "Saketh, Pedagandham"]
[Black "Kaushal Kishor Jaiswal"]
[Result "1-0"]
[ECO "C50"]
[WhiteElo "1693"]
[BlackElo "1382"]
[Annotator "NA"]
[PlyCount "56"]
[EventDate "2018.12.30"]
[EventType "swiss"]
[EventCountry "IND"]
[SourceTitle "playchess.com"]
[Source "ChessBase"]
[SourceQuality "1"]
[TimeControl "40/5400+30:1800+30"]

1. e4 {[%emt 0:05:38]} e5 {[%emt 0:00:07]} 2. Nf3 {[%emt 0:00:37]} Nc6 {[%emt 0:00:17]} 3. Bc4 {[%emt 0:00:15]} Bc5 {[%emt 0:00:13]} 4. O-O {[%emt 0:00:17]} d6 {[%emt 0:00:53]} 5. d3 {[%emt 0:00:25]} Bg4 {[%emt 0:00:19]} 6. c3 {[%emt 0:00:09]} Bh5 {[%emt 0:10:26]} 7. Be3 {[%emt 0:01:07]} Bb6 {[%emt 0:00:12]} 8. a4 {[%emt 0:05:11]} Na5 {[%emt 0:05:15]} 9. Ba2 {[%emt 0:02:13]} c5 {[%emt 0:00:07]} 10. d4 {[%emt 0:03:24]} cxd4 {[%emt 0:08:05]} 11. cxd4 {[%emt 0:01:06]} Nc6 {[%emt 0:00:25]} 12. dxe5 {[%emt 0:18:18]} Bxe3 {[%emt 0:04:08]} 13. fxe3 {[%emt 0:03:33]} Nxe5 {[%emt 0:01:06]} 14. Qb3 {[%emt 0:03:20]} Qe7 {[%emt 0:05:48]} 15. Qb5+ {[%emt 0:08:32]} Qd7 {[%emt 0:02:01]} 16. Nxe5 {[%emt 0:01:09]} Qxb5 {[%emt 0:00:10]} 17. axb5 {[%emt 0:00:17]} dxe5 {[%emt 0:00:03]} 18. Bd5 {[%emt 0:00:05]} Rb8 {[%emt 0:01:35]} 19. Rxa7 {[%emt 0:00:39]} Nf6 {[%emt 0:02:22]} 20. Rxb7 {[%emt 0:00:44]} O-O {[%emt 0:01:41]} 21. Nc3 {[%emt 0:00:45]} Rxb7 {[%emt 0:07:49]} 22. Bxb7 {[%emt 0:00:04]} Nd7 {[%emt 0:00:49]} 23. Ra1 {[%emt 0:00:49]} Nb6 {[%emt 0:00:34]} 24. Nd5 {[%emt 0:01:53]} Nc4 {[%emt 0:03:13]} 25. b3 {[%emt 0:00:02]} Nd6 {[%emt 0:00:09]} 26. Bc6 {[%emt 0:00:25]} Be2 {[%emt 0:01:09]} 27. b6 {[%emt 0:00:17]} Rb8 {[%emt 0:03:22]} 28. b7 {[%emt 0:00:07]} Bg4 1-0

[Event "IIFL Wealth 4th Mumbai Open"]
[Site "Mumbai"]
[Date "2019.01.02"]
[Round "4"]
[White "Joglekar, Abhijit"]
[Black "Vahdatian, Davood"]
[Result "0-1"]
[ECO "B34"]
[WhiteElo "1692"]
[BlackElo "2036"]
[Annotator "NA"]
[PlyCount "74"]
[EventDate "2018.12.30"]
[EventType "swiss"]
[EventCountry "IND"]
[SourceTitle "playchess.com"]
[Source "ChessBase"]
[SourceQuality "1"]
[TimeControl "40/5400+30:1800+30"]

1. e4 c5 2. Nf3 Nc6 3. d4 cxd4 4. Nxd4 g6 5. Nc3 Bg7 6. Be3 Nf6 7. f3 O-O 8. Qd2 d5 9. exd5 Nxd5 10. Nxd5 Qxd5 11. Nxc6 Qxc6 12. c3 Be6 13. Be2 Rfd8 14. Qc1 Bc4 15. Qc2 b5 16. Kf2 a5 17. a4 Bxe2 18. Qxe2 bxa4 19. Qc2 Rdb8 20. Ra3 Rb5 21. Rha1 Rab8 22. R1a2 Rb3 23. g3 h5 24. h4 Qc4 25. Bc1 Rxa3 26. Rxa3 Rb3 27. Ra1 Be5 28. Qe4 Qc7 29. f4 Bxc3 30. Rxa4 Bb4 31. Be3 Rxb2+ 32. Kf3 Qd7 33. Qd4 Qc6+ 34. Qe4 Qxa4 35. Qa8+ Kh7 36. Bd4 Qd1+ 37. Ke3 Qe2# 0-1

[Event "IIFL Wealth 4th Mumbai Open"]
[Site "Mumbai"]
[Date "2019.01.02"]
[Round "4"]
[White "Kohad Dipesh"]
[Black "Aditya, Varun Gampa"]
[Result "0-1"]
[ECO "D04"]
[WhiteElo "1683"]
[BlackElo "1809"]
[Annotator "NA"]
[PlyCount "120"]
[EventDate "2018.12.30"]
[EventType "swiss"]
[EventCountry "IND"]
[SourceTitle "playchess.com"]
[Source "ChessBase"]
[SourceQuality "1"]
[TimeControl "40/5400+30:1800+30"]

1. d4 {[%emt 0:00:00]} Nf6 {[%emt 0:00:09]} 2. Nf3 {[%emt 0:00:00]} d5 {[%emt 0:01:09]} 3. e3 {[%emt 0:00:00]} c5 {[%emt 0:01:03]} 4. b3 {[%emt 0:01:00]} cxd4 {[%emt 0:01:48]} 5. exd4 {[%emt 0:00:04]} Nc6 {[%emt 0:00:44]} 6. Bb2 {[%emt 0:01:34]} Bg4 {[%emt 0:01:17]} 7. Be2 {[%emt 0:04:11]} e6 {[%emt 0:00:56]} 8. O-O {[%emt 0:00:43]} Bd6 {[%emt 0:00:55]} 9. Nbd2 {[%emt 0:04:26]} O-O {[%emt 0:02:37]} 10. Ne5 {[%emt 0:18:07]} Bxe2 {[%emt 0:01:54]} 11. Qxe2 {[%emt 0:00:13]} Qb6 {[%emt 0:03:24]} 12. Nxc6 {[%emt 0:03:38]} Qxc6 {[%emt 0:02:41]} 13. c4 {[%emt 0:04:05]} Rac8 {[%emt 0:02:49]} 14. c5 {[%emt 0:06:12]} Bf4 {[%emt 0:03:23]} 15. b4 {[%emt 0:03:02]} Bxd2 {[%emt 0:02:14]} 16. Qxd2 {[%emt 0:00:02]} Qa4 {[%emt 0:01:20]} 17. a3 {[%emt 0:03:19]} a6 {[%emt 0:00:59]} 18. Qd1 {[%emt 0:00:35]} Qc6 {[%emt 0:10:17]} 19. a4 {[%emt 0:07:30]} b6 {[%emt 0:00:59]} 20. Qd3 {[%emt 0:00:19]} Qb7 {[%emt 0:01:48]} 21. b5 {[%emt 0:01:05]} bxc5 {[%emt 0:00:36]} 22. dxc5 {[%emt 0:00:16]} axb5 {[%emt 0:00:58]} 23. axb5 {[%emt 0:00:36]} Rxc5 {[%emt 0:01:43]} 24. Ba3 {[%emt 0:00:38]} Rxb5 {[%emt 0:01:02]} 25. Bxf8 {[%emt 0:00:19]} Kxf8 {[%emt 0:00:11]} 26. Rfb1 {[%emt 0:00:48]} Rxb1+ {[%emt 0:00:24]} 27. Rxb1 {[%emt 0:00:05]} Qa7 {[%emt 0:00:38]} 28. Qc3 {[%emt 0:02:28]} Qxf2+ {[%emt 0:00:27]} 29. Kxf2 {[%emt 0:03:05]} Ne4+ {[%emt 0:00:06]} 30. Ke3 {[%emt 0:00:30]} Nxc3 {[%emt 0:00:02]} 31. Rb8+ {[%emt 0:00:07]} Ke7 {[%emt 0:00:16]} 32. Rb7+ {[%emt 0:00:09]} Kf6 {[%emt 0:00:04]} 33. g4 {[%emt 0:01:19]} h6 {[%emt 0:01:11]} 34. h4 {[%emt 0:00:31]} Ne4 {[%emt 0:00:44]} 35. Rb1 {[%emt 0:00:38]} Ke5 {[%emt 0:00:38]} 36. Rb7 {[%emt 0:00:50]} d4+ {[%emt 0:00:15]} 37. Kf3 {[%emt 0:00:45]} Nd6 {[%emt 0:00:09]} 38. Ra7 {[%emt 0:00:36]} g5 {[%emt 0:02:50]} 39. hxg5 {[%emt 0:02:02]} hxg5 {[%emt 0:00:02]} 40. Ra5+ {[%emt 0:00:00]} Kf6 {[%emt 0:00:00]} 41. Ra6 {[%emt 0:00:20]} Nc4 {[%emt 0:01:24]} 42. Ke4 {[%emt 0:05:56]} Ne5 {[%emt 0:00:40]} 43. Kxd4 {[%emt 0:00:08]} Nxg4 {[%emt 0:00:08]} 44. Ra5 {[%emt 0:00:14]} Kg6 {[%emt 0:00:22]} 45. Ke4 {[%emt 0:00:12]} f5+ {[%emt 0:00:09]} 46. Kf3 {[%emt 0:00:08]} e5 {[%emt 0:00:15]} 47. Ra8 {[%emt 0:01:36]} e4+ {[%emt 0:00:15]} 48. Kg3 {[%emt 0:00:17]} Nf6 {[%emt 0:00:02]} 49. Ra6 {[%emt 0:00:27]} f4+ {[%emt 0:00:02]} 50. Kf2 {[%emt 0:00:11]} g4 {[%emt 0:00:12]} 51. Ra5 {[%emt 0:00:23]} e3+ {[%emt 0:00:26]} 52. Ke2 {[%emt 0:00:32]} Nh5 {[%emt 0:00:02]} 53. Rb5 {[%emt 0:00:47]} Ng3+ {[%emt 0:00:19]} 54. Kd3 {[%emt 0:01:04]} Nf5 {[%emt 0:00:38]} 55. Rb4 {[%emt 0:03:15]} Kg5 {[%emt 0:00:04]} 56. Rb5 {[%emt 0:01:12]} f3 {[%emt 0:00:42]} 57. Ke4 {[%emt 0:02:15]} e2 {[%emt 0:00:26]} 58. Rxf5+ {[%emt 0:00:05]} Kh4 {[%emt 0:00:08]} 59. Rxf3 {[%emt 0:00:41]} gxf3 {[%emt 0:00:10]} 60. Kxf3 {[%emt 0:00:08]} e1=Q {[%emt 0:00:09]} 0-1

[Event "IIFL Wealth 4th Mumbai Open"]
[Site "Mumbai"]
[Date "2019.01.02"]
[Round "4"]
[White "Dhanashree, Pandit"]
[Black "Isha Pritam Inamdar"]
[Result "1-0"]
[ECO "A51"]
[WhiteElo "1676"]
[BlackElo "1380"]
[Annotator "NA"]
[PlyCount "127"]
[EventDate "2018.12.30"]
[EventType "swiss"]
[EventCountry "IND"]
[SourceTitle "playchess.com"]
[Source "ChessBase"]
[SourceQuality "1"]
[TimeControl "40/5400+30:1800+30"]

1. d4 {[%emt 0:00:00]} Nf6 {[%emt 0:00:00]} 2. c4 {[%emt 0:00:55]} e5 {[%emt 0:00:00]} 3. e3 {[%emt 0:01:11]} exd4 {[%emt 0:00:38]} 4. exd4 {[%emt 0:00:32]} Bb4+ {[%emt 0:00:28]} 5. Bd2 {[%emt 0:01:27]} Bxd2+ {[%emt 0:00:22]} 6. Nxd2 {[%emt 0:04:06]} O-O {[%emt 0:00:27]} 7. Ngf3 {[%emt 0:05:22]} d5 {[%emt 0:01:51]} 8. Be2 {[%emt 0:01:19]} dxc4 {[%emt 0:04:27]} 9. Nxc4 {[%emt 0:00:12]} Nd5 {[%emt 0:02:46]} 10. Qd2 {[%emt 0:04:13]} c6 {[%emt 0:04:02]} 11. O-O {[%emt 0:00:43]} Nd7 {[%emt 0:00:23]} 12. Nd6 {[%emt 0:04:43]} N7f6 {[%emt 0:00:06]} 13. Nxc8 {[%emt 0:00:06]} Rxc8 {[%emt 0:00:25]} 14. Bd3 {[%emt 0:00:06]} Qd6 {[%emt 0:03:22]} 15. Ne5 {[%emt 0:02:12]} Qb4 {[%emt 0:05:07]} 16. Rfd1 {[%emt 0:20:30]} Qxd2 {[%emt 0:03:44]} 17. Rxd2 {[%emt 0:00:03]} Rcd8 {[%emt 0:03:02]} 18. Rad1 {[%emt 0:03:24]} Rd6 {[%emt 0:02:27]} 19. g3 {[%emt 0:08:09]} Nb6 {[%emt 0:11:58]} 20. b4 {[%emt 0:04:38]} Nfd5 {[%emt 0:13:16]} 21. b5 {[%emt 0:02:46]} cxb5 {[%emt 0:02:32]} 22. Rc1 {[%emt 0:01:46]} a6 {[%emt 0:00:41]} 23. Be4 {[%emt 0:00:55]} f6 {[%emt 0:01:11]} 24. Nd3 {[%emt 0:00:33]} Nc4 {[%emt 0:04:21]} 25. Re2 {[%emt 0:00:01]} g6 {[%emt 0:13:45]} 26. Nc5 {[%emt 0:01:10]} Rf7 {[%emt 0:01:38]} 27. Bg2 {[%emt 0:11:52]} Nb4 {[%emt 0:13:07]} 28. Bxb7 {[%emt 0:00:56]} Rxd4 {[%emt 0:01:29]} 29. Re8+ {[%emt 0:00:11]} Rf8 {[%emt 0:00:06]} 30. Rxf8+ {[%emt 0:00:05]} Kxf8 {[%emt 0:00:06]} 31. Ne6+ {[%emt 0:00:06]} Ke7 {[%emt 0:00:07]} 32. Nxd4 {[%emt 0:00:05]} Nxa2 {[%emt 0:00:11]} 33. Re1+ {[%emt 0:00:44]} Kd7 {[%emt 0:01:42]} 34. Bxa6 {[%emt 0:00:13]} Nc3 {[%emt 0:00:27]} 35. Bxb5+ {[%emt 0:01:09]} Nxb5 {[%emt 0:00:10]} 36. Nxb5 {[%emt 0:00:04]} Ne5 {[%emt 0:00:07]} 37. Kg2 {[%emt 0:00:05]} Kc6 {[%emt 0:00:06]} 38. Nc3 {[%emt 0:00:17]} Kd6 {[%emt 0:01:28]} 39. Ra1 {[%emt 0:00:14]} f5 {[%emt 0:00:12]} 40. Ra7 {[%emt 0:00:00]} h5 {[%emt 0:00:00]} 41. Ra6+ {[%emt 0:00:36]} Ke7 {[%emt 0:00:32]} 42. f4 {[%emt 0:00:09]} Ng4 {[%emt 0:00:38]} 43. Rxg6 {[%emt 0:00:10]} Nf6 {[%emt 0:00:07]} 44. Rg5 {[%emt 0:00:14]} Ke6 {[%emt 0:00:18]} 45. Ne2 {[%emt 0:00:10]} Kf7 {[%emt 0:00:25]} 46. Rxf5 {[%emt 0:00:09]} Kg6 {[%emt 0:00:04]} 47. Rxf6+ {[%emt 0:00:18]} Kxf6 {[%emt 0:00:04]} 48. h3 {[%emt 0:00:07]} Kf5 {[%emt 0:00:03]} 49. Kf3 {[%emt 0:00:04]} Kf6 {[%emt 0:00:03]} 50. g4 {[%emt 0:00:04]} hxg4+ {[%emt 0:00:05]} 51. hxg4 {[%emt 0:00:03]} Kg6 {[%emt 0:00:06]} 52. Ke4 {[%emt 0:00:04]} Kf6 {[%emt 0:00:04]} 53. f5 {[%emt 0:00:10]} Kf7 {[%emt 0:00:04]} 54. g5 {[%emt 0:00:05]} Kg7 {[%emt 0:00:05]} 55. Ke5 {[%emt 0:00:03]} Kf7 {[%emt 0:00:04]} 56. g6+ {[%emt 0:00:08]} Kg7 {[%emt 0:00:05]} 57. Ke6 {[%emt 0:00:25]} Kf8 {[%emt 0:00:08]} 58. f6 {[%emt 0:00:07]} Kg8 {[%emt 0:00:09]} 59. g7 {[%emt 0:00:57]} Kh7 {[%emt 0:00:10]} 60. Kf7 {[%emt 0:00:17]} Kh6 {[%emt 0:00:10]} 61. g8=Q {[%emt 0:00:55]} Kh5 {[%emt 0:00:45]} 62. Ke6 {[%emt 0:00:12]} Kh4 {[%emt 0:00:08]} 63. Kf5 {[%emt 0:00:04]} Kh3 {[%emt 0:00:05]} 64. Qg3# {[%emt 0:00:03]} 1-0

[Event "IIFL Wealth 4th Mumbai Open"]
[Site "Mumbai"]
[Date "2019.01.02"]
[Round "4"]
[White "Tejes Suresh Kumar"]
[Black "Thatte, Ashish P"]
[Result "1/2-1/2"]
[ECO "C11"]
[WhiteElo "1618"]
[BlackElo "1957"]
[Annotator "NA"]
[PlyCount "92"]
[EventDate "2018.12.30"]
[EventType "swiss"]
[EventCountry "IND"]
[SourceTitle "playchess.com"]
[Source "ChessBase"]
[SourceQuality "1"]
[TimeControl "40/5400+30:1800+30"]

1. e4 {[%emt 0:00:00]} e6 {[%emt 0:00:00]} 2. d4 {[%emt 0:00:00]} d5 {[%emt 0:00:00]} 3. Nc3 {[%emt 0:00:00]} Nf6 {[%emt 0:00:14]} 4. e5 {[%emt 0:00:00]} Nfd7 {[%emt 0:00:05]} 5. f4 {[%emt 0:00:09]} c5 {[%emt 0:00:49]} 6. Nf3 {[%emt 0:00:05]} Nc6 {[%emt 0:00:35]} 7. Be3 {[%emt 0:00:07]} a6 {[%emt 0:04:06]} 8. Qd2 {[%emt 0:00:48]} Be7 {[%emt 0:09:59]} 9. Be2 {[%emt 0:06:22]} O-O {[%emt 0:03:58]} 10. O-O {[%emt 0:00:22]} b5 {[%emt 0:07:41]} 11. dxc5 $11 {[%emt 0:00:57] LiveBook: 9 Games} b4 {[%emt 0:13:52]} 12. Na4 {[%emt 0:02:39]} Qa5 {[%emt 0:01:16]} 13. Nb6 {[%emt 0:00:07]} Nxb6 {[%emt 0:07:21]} 14. cxb6 {[%emt 0:01:00]} Bc5 {[%emt 0:00:02]} 15. Kh1 {[%emt 0:04:24]} Qxb6 {[%emt 0:01:28]} 16. Bxc5 {[%emt 0:00:47]} Qxc5 {[%emt 0:00:02]} 17. a3 {[%emt 0:00:59]} Rb8 {[%emt 0:04:01]} 18. a4 {[%emt 0:06:37]} Rb6 {[%emt 0:08:49]} 19. Qd3 {[%emt 0:10:37]} h6 {[%emt 0:05:34]} 20. g4 {[%emt 0:04:23]} g6 {[%emt 0:20:01]} 21. Rg1 {[%emt 0:02:20]} Kh7 {[%emt 0:00:54]} 22. h4 {[%emt 0:14:08]} a5 {[%emt 0:02:47]} 23. Qd2 {[%emt 0:02:20]} Ba6 {[%emt 0:00:22]} 24. Bxa6 {[%emt 0:00:23]} Rxa6 {[%emt 0:00:02]} 25. h5 {[%emt 0:00:46]} Rh8 {[%emt 0:03:50]} 26. hxg6+ {[%emt 0:01:31]} fxg6 {[%emt 0:00:06]} 27. f5 {[%emt 0:02:52]} exf5 {[%emt 0:01:58]} 28. gxf5 {[%emt 0:00:12]} Ne7 {[%emt 0:00:19]} 29. fxg6+ {[%emt 0:00:35]} Rxg6 {[%emt 0:00:24]} 30. Rxg6 {[%emt 0:09:25]} Nxg6 {[%emt 0:00:01]} 31. Qd3 {[%emt 0:00:18]} Qc4 {[%emt 0:00:39]} 32. Qxc4 {[%emt 0:03:09]} dxc4 {[%emt 0:00:01]} 33. Rd1 {[%emt 0:00:19]} Rf8 {[%emt 0:01:34]} 34. Kg2 {[%emt 0:00:46]} Kg7 {[%emt 0:01:05]} 35. Rd7+ {[%emt 0:00:15]} Rf7 {[%emt 0:00:30]} 36. Rd8 {[%emt 0:01:54]} Re7 {[%emt 0:01:01]} 37. Ra8 {[%emt 0:00:25]} Nxe5 {[%emt 0:00:09]} 38. Rxa5 {[%emt 0:00:27]} Ng4 {[%emt 0:00:48]} 39. Kg3 {[%emt 0:02:08]} Ne3 {[%emt 0:00:07]} 40. Re5 {[%emt 0:00:00]} Rxe5 {[%emt 0:00:00]} 41. Nxe5 {[%emt 0:00:50]} c3 {[%emt 0:10:35]} 42. bxc3 {[%emt 0:01:04]} bxc3 {[%emt 0:00:13]} 43. a5 {[%emt 0:00:12]} Nd5 {[%emt 0:00:02]} 44. Kf3 {[%emt 0:05:27]} Kf6 {[%emt 0:05:06]} 45. Nd3 {[%emt 0:03:03]} Ke7 {[%emt 0:05:01]} 46. Ke4 {[%emt 0:00:40]} Kd6 {[%emt 0:01:31]} 1/2-1/2

[Event "IIFL Wealth 4th Mumbai Open"]
[Site "Mumbai"]
[Date "2019.01.02"]
[Round "4"]
[White "Nayanikaa Muralidharan"]
[Black "Kapadi, Yash"]
[Result "0-1"]
[ECO "A22"]
[WhiteElo "1539"]
[BlackElo "1749"]
[Annotator "NA"]
[PlyCount "132"]
[EventDate "2018.12.30"]
[EventType "swiss"]
[EventCountry "IND"]
[SourceTitle "playchess.com"]
[Source "ChessBase"]
[SourceQuality "1"]
[TimeControl "40/5400+30:1800+30"]

1. c4 Nf6 2. Nc3 e5 3. g3 Be7 4. Bg2 O-O 5. Nf3 d6 6. O-O c6 7. d3 Qc7 8. a3 a5 9. Rb1 Bf5 10. Bd2 Bc8 11. Bc1 Bf5 12. Bd2 Nbd7 13. e4 Bg4 14. h3 Bh5 15. b4 Rfe8 16. Qc2 axb4 17. axb4 Nf8 18. Rfc1 Qd7 19. Kh2 Ne6 20. Be3 h6 21. Na4 Bd8 22. c5 Bxf3 23. Bxf3 d5 24. exd5 Nxd5 25. Bxd5 Qxd5 26. Nc3 Qd7 27. Na4 Qd5 28. Nc3 Qd7 29. Ne4 Bc7 30. Nc3 Bd8 31. Ne4 Bc7 32. Qc4 Bd8 33. Qc2 Bc7 34. Qc4 f5 35. Nc3 f4 36. Bd2 Rad8 37. Be3 Ra8 38. Bd2 Rad8 39. Be3 Ra8 40. Bd2 Rad8 41. Qa2 fxg3+ 42. fxg3 Qxd3 43. Rd1 Qd7 44. Rdc1 Qd3 45. Rd1 Qg6 46. Be1 Kh8 47. Bf2 Ng5 48. Qe2 Qf5 49. Qa2 Qg6 50. Qe2 Qf5 51. Qf1 Rxd1 52. Rxd1 Rf8 53. Rb1 Re8 54. Rd1 Rf8 55. h4 Nf3+ 56. Kg2 Qg4 57. Qh1 Qf5 58. Qf1 e4 59. Ne2 Qg4 60. Qh1 Qf5 61. Qf1 Qg4 62. Qh1 Qf5 63. Qf1 Qg4 64. Qh1 Nxh4+ 65. Qxh4 Qxe2 66. Rf1 e3 0-1

[Event "IIFL Wealth 4th Mumbai Open"]
[Site "Mumbai"]
[Date "2019.01.02"]
[Round "4"]
[White "Ratnapriya K"]
[Black "Shreyas, Ghadi"]
[Result "1-0"]
[ECO "C11"]
[WhiteElo "1508"]
[BlackElo "1653"]
[Annotator "NA"]
[PlyCount "125"]
[EventDate "2018.12.30"]
[EventType "swiss"]
[EventCountry "IND"]
[SourceTitle "playchess.com"]
[Source "ChessBase"]
[SourceQuality "1"]
[TimeControl "40/5400+30:1800+30"]

1. e4 {[%emt 0:00:00]} e6 {[%emt 0:00:00]} 2. d4 {[%emt 0:00:00]} d5 {[%emt 0:00:00]} 3. Nc3 {[%emt 0:00:21]} Nf6 {[%emt 0:00:00]} 4. Bg5 {[%emt 0:00:15]} dxe4 {[%emt 0:00:07]} 5. Nxe4 {[%emt 0:00:25]} Be7 {[%emt 0:00:05]} 6. Bxf6 {[%emt 0:00:58]} gxf6 {[%emt 0:00:30]} 7. Nf3 {[%emt 0:00:11]} b6 {[%emt 0:01:03]} 8. Bd3 {[%emt 0:01:48]} Bb7 {[%emt 0:01:04]} 9. Qe2 {[%emt 0:03:11]} Nd7 {[%emt 0:03:14]} 10. O-O-O {[%emt 0:01:09]} c6 {[%emt 0:02:37]} 11. Kb1 {[%emt 0:02:01]} Qc7 {[%emt 0:00:35]} 12. Rhe1 {[%emt 0:01:53]} O-O-O {[%emt 0:01:55]} 13. Ba6 {[%emt 0:01:44]} Rhg8 {[%emt 0:00:31]} 14. g3 {[%emt 0:01:12]} f5 {[%emt 0:02:18]} 15. Ned2 {[%emt 0:02:32]} Bf6 {[%emt 0:03:27]} 16. Nb3 {[%emt 0:14:42]} c5 {[%emt 0:06:51]} 17. Bxb7+ {[%emt 0:06:49]} Kxb7 {[%emt 0:00:24]} 18. Qb5 {[%emt 0:02:34]} Ka8 {[%emt 0:05:30]} 19. c4 {[%emt 0:02:50]} cxd4 {[%emt 0:15:05]} 20. Nfxd4 {[%emt 0:05:02]} Bxd4 {[%emt 0:00:11]} 21. Nxd4 {[%emt 0:01:47]} Nc5 {[%emt 0:00:39]} 22. Qc6+ {[%emt 0:00:52]} Qxc6 {[%emt 0:05:21]} 23. Nxc6 {[%emt 0:00:40]} Rxd1+ {[%emt 0:00:10]} 24. Rxd1 {[%emt 0:00:18]} Rc8 {[%emt 0:09:14]} 25. Rd8 {[%emt 0:01:11]} Rxd8 {[%emt 0:01:39]} 26. Nxd8 {[%emt 0:01:39]} f6 {[%emt 0:11:22]} 27. b4 {[%emt 0:00:28]} Ne4 {[%emt 0:00:03]} 28. Nxe6 {[%emt 0:01:33]} Nxf2 {[%emt 0:00:03]} 29. Ng7 {[%emt 0:00:56]} Nd3 {[%emt 0:07:06]} 30. Ne8 {[%emt 0:02:55]} f4 {[%emt 0:16:05]} 31. gxf4 {[%emt 0:00:49]} f5 {[%emt 0:00:02]} 32. a3 {[%emt 0:01:18]} Nxf4 {[%emt 0:01:21]} 33. Nd6 {[%emt 0:00:20]} Kb8 {[%emt 0:00:06]} 34. Nxf5 {[%emt 0:01:11]} Kc7 {[%emt 0:01:06]} 35. Kc2 {[%emt 0:00:09]} a5 {[%emt 0:01:03]} 36. Kd2 {[%emt 0:01:21]} axb4 {[%emt 0:00:30]} 37. axb4 {[%emt 0:00:12]} Ng6 {[%emt 0:00:59]} 38. Kc3 {[%emt 0:01:11]} Ne5 {[%emt 0:00:43]} 39. h3 {[%emt 0:03:12]} Kd7 {[%emt 0:00:37]} 40. b5 {[%emt 0:00:00]} Ke6 {[%emt 0:00:00]} 41. Ne3 {[%emt 0:03:49]} Kd6 {[%emt 0:00:52]} 42. Ng4 {[%emt 0:04:24]} Ng6 {[%emt 0:00:24]} 43. Kd4 {[%emt 0:05:47]} h5 {[%emt 0:00:40]} 44. Nf6 {[%emt 0:00:58]} Nf4 {[%emt 0:00:38]} 45. Nd5 {[%emt 0:02:44]} Nxh3 {[%emt 0:01:20]} 46. Nxb6 {[%emt 0:01:12]} Ng5 {[%emt 0:00:12]} 47. c5+ {[%emt 0:00:55]} Kc7 {[%emt 0:00:07]} 48. Nd5+ {[%emt 0:00:16]} Kb8 {[%emt 0:06:16]} 49. Nf6 {[%emt 0:06:19]} h4 {[%emt 0:00:33]} 50. Kd5 {[%emt 0:00:41]} h3 {[%emt 0:01:45]} 51. Ng4 {[%emt 0:00:12]} Nf3 {[%emt 0:00:30]} 52. c6 {[%emt 0:07:45]} h2 {[%emt 0:06:56]} 53. Nxh2 {[%emt 0:01:40]} Nxh2 {[%emt 0:00:03]} 54. b6 {[%emt 0:00:21]} Nf3 {[%emt 0:03:39]} 55. Kd6 {[%emt 0:00:34]} Nd4 {[%emt 0:01:21]} 56. c7+ {[%emt 0:00:29]} Kc8 {[%emt 0:00:23]} 57. b7+ {[%emt 0:00:11]} Kxb7 {[%emt 0:01:27]} 58. Kd7 {[%emt 0:00:13]} Nb5 {[%emt 0:00:17]} 59. c8=Q+ {[%emt 0:00:16]} Kb6 {[%emt 0:00:03]} 60. Qc6+ {[%emt 0:01:34]} Ka5 {[%emt 0:00:11]} 61. Qc5 {[%emt 0:02:15]} Ka6 62. Kc6 Na7+ 63. Kd5 1-0